[Event "January 9 Early 2024"]
[Site "https://www.chess.com"]
[Date "2024.01.11"]
[Round "4"]
[White "de Lisle, Sarah"]
[Black "Eggleston, Thomas A"]
[Result "1/2-1/2"]
[Board "244"]
[TimeControl "180+1"]
[WhiteFideId "402605"]
[BlackFideId "412139"]
[WhiteElo "1940"]
[BlackElo "2244"]
[WhiteTeam "ENG"]
[BlackTeam "ENG"]
[WhiteClock "0:00:19"]
[BlackClock "0:00:03"]

1. e4 {[%clk 0:03:00]}  e6 {[%clk 0:03:00]} 2. d4 {[%clk 0:02:59]}  d5 {[%clk 0:03:01]} 3. e5 {[%clk 0:02:58]}  c5 {[%clk 0:03:01]} 4. c3 {[%clk 0:02:57]}  Nc6 {[%clk 0:03:01]} 5. Nf3 {[%clk 0:02:56]}  Qb6 {[%clk 0:03:01]} 6. b3 {[%clk 0:02:33]}  cxd4 {[%clk 0:02:54]} 7. cxd4 {[%clk 0:02:33]}  Bb4+ {[%clk 0:02:53]} 8. Bd2 {[%clk 0:02:24]}  Nxd4 {[%clk 0:02:50]} 9. Bd3 {[%clk 0:01:47]}  Nxf3+ {[%clk 0:02:40]} 10. Qxf3 {[%clk 0:01:44]}  Bxd2+ {[%clk 0:02:40]} 11. Nxd2 {[%clk 0:01:44]}  Qd4 {[%clk 0:02:40]} 12. O-O {[%clk 0:01:34]}  Qxe5 {[%clk 0:02:36]} 13. Bb5+ {[%clk 0:01:33]}  Kf8 {[%clk 0:02:32]} 14. Rfe1 {[%clk 0:01:24]}  Qf6 {[%clk 0:02:23]} 15. Qxd5 {[%clk 0:01:09]}  g6 {[%clk 0:02:17]} 16. Qd6+ {[%clk 0:00:53]}  Qe7 {[%clk 0:01:50]} 17. Qe5 {[%clk 0:00:50]}  f6 {[%clk 0:01:50]} 18. Qg3 {[%clk 0:00:45]}  Nh6 {[%clk 0:01:46]} 19. Ne4 {[%clk 0:00:40]}  Nf5 {[%clk 0:01:44]} 20. Qf3 {[%clk 0:00:38]}  Kg7 {[%clk 0:01:37]} 21. Rad1 {[%clk 0:00:37]}  a6 {[%clk 0:01:34]} 22. Bc4 {[%clk 0:00:36]}  b5 {[%clk 0:01:27]} 23. Ng3 {[%clk 0:00:29]}  Bb7 {[%clk 0:00:40]} 24. Nxf5+ {[%clk 0:00:27]}  gxf5 {[%clk 0:00:40]} 25. Qg3+ {[%clk 0:00:25]}  Kf8 {[%clk 0:00:33]} 26. Rxe6 {[%clk 0:00:25]}  Rg8 {[%clk 0:00:24]} 27. Rxe7 {[%clk 0:00:24]}  Rxg3 {[%clk 0:00:23]} 28. hxg3 {[%clk 0:00:23]}  Kxe7 {[%clk 0:00:22]} 29. Re1+ {[%clk 0:00:23]}  Kd6 {[%clk 0:00:20]} 30. Bd3 {[%clk 0:00:23]}  Kc5 {[%clk 0:00:18]} 31. Bxf5 {[%clk 0:00:23]}  Rd8 {[%clk 0:00:16]} 32. Re2 {[%clk 0:00:21]}  Rd5 {[%clk 0:00:14]} 33. Be4 {[%clk 0:00:20]}  Re5 {[%clk 0:00:14]} 34. f3 {[%clk 0:00:20]}  f5 {[%clk 0:00:12]} 35. Bd3 {[%clk 0:00:20]}  Rxe2 {[%clk 0:00:12]} 36. Bxe2 {[%clk 0:00:20]}  Kb4 {[%clk 0:00:12]} 37. Bd3 {[%clk 0:00:18]}  Ka3 {[%clk 0:00:11]} 38. Bxf5 {[%clk 0:00:19]}  Kxa2 {[%clk 0:00:11]} 39. Be6 {[%clk 0:00:18]}  Kb2 {[%clk 0:00:07]} 40. f4 {[%clk 0:00:19]}  Be4 {[%clk 0:00:05]} 41. f5 {[%clk 0:00:18]}  a5 {[%clk 0:00:02]} 42. f6 {[%clk 0:00:18]}  Bg6 {[%clk 0:00:01]} 43. f7 {[%clk 0:00:18]}  Bxf7 {[%clk 0:00:02]} 44. Bxf7 {[%clk 0:00:18]}  a4 {[%clk 0:00:01]} 45. bxa4 {[%clk 0:00:18]}  bxa4 {[%clk 0:00:02]} 46. g4 {[%clk 0:00:18]}  a3 {[%clk 0:00:01]} 47. Kf2 {[%clk 0:00:18]}  a2 {[%clk 0:00:02]} 48. Bxa2 {[%clk 0:00:18]}  Kxa2 {[%clk 0:00:02]} 49. Ke3 {[%clk 0:00:19]}  Kb3 {[%clk 0:00:03]} 50. Kf4 {[%clk 0:00:17]}  Kc4 {[%clk 0:00:03]} 51. g5 {[%clk 0:00:18]}  Kd5 {[%clk 0:00:03]} 52. Kf5 {[%clk 0:00:18]}  Kd6 {[%clk 0:00:03]} 53. g6 {[%clk 0:00:19]}  hxg6+ {[%clk 0:00:03]} 54. Kg5 {[%clk 0:00:18]}  Ke5 {[%clk 0:00:02]} 55. Kxg6 {[%clk 0:00:19]}  Kf4 {[%clk 0:00:03]} 56. g4 {[%clk 0:00:19]}  Kxg4 {[%clk 0:00:03]} 1/2-1/2

[Event "January 9 Early 2024"]
[Site "https://www.chess.com"]
[Date "2024.01.11"]
[Round "4"]
[White "Drygalov, Sergey"]
[Black "Kosteniuk, Alexandra"]
[Result "1-0"]
[Board "245"]
[TimeControl "180+1"]
[WhiteFideId "24171743"]
[BlackFideId "4128125"]
[WhiteElo "2943"]
[BlackElo "2755"]
[WhiteTeam "RUS"]
[BlackTeam "SUI"]
[WhiteClock "0:00:27"]
[BlackClock "0:00:06"]

1. d4 {[%clk 0:03:00]}  Nf6 {[%clk 0:02:59]} 2. c4 {[%clk 0:03:01]}  e6 {[%clk 0:02:59]} 3. Nf3 {[%clk 0:03:02]}  Bb4+ {[%clk 0:02:59]} 4. Nbd2 {[%clk 0:03:01]}  O-O {[%clk 0:02:56]} 5. a3 {[%clk 0:03:02]}  Be7 {[%clk 0:02:56]} 6. e4 {[%clk 0:03:02]}  d6 {[%clk 0:02:57]} 7. Bd3 {[%clk 0:03:02]}  e5 {[%clk 0:02:56]} 8. b4 {[%clk 0:03:01]}  a5 {[%clk 0:02:51]} 9. Bb2 {[%clk 0:02:59]}  Bg4 {[%clk 0:02:43]} 10. Qb3 {[%clk 0:02:39]}  axb4 {[%clk 0:02:39]} 11. axb4 {[%clk 0:02:39]}  Rxa1+ {[%clk 0:02:39]} 12. Bxa1 {[%clk 0:02:39]}  exd4 {[%clk 0:02:35]} 13. Nxd4 {[%clk 0:02:38]}  Nc6 {[%clk 0:02:21]} 14. O-O {[%clk 0:02:35]}  Nxd4 {[%clk 0:02:17]} 15. Bxd4 {[%clk 0:02:35]}  Nd7 {[%clk 0:02:17]} 16. h3 {[%clk 0:02:16]}  Be6 {[%clk 0:02:04]} 17. Qc3 {[%clk 0:02:16]}  Bf6 {[%clk 0:02:03]} 18. Bxf6 {[%clk 0:02:16]}  Qxf6 {[%clk 0:01:51]} 19. Qxf6 {[%clk 0:02:14]}  Nxf6 {[%clk 0:01:51]} 20. Ra1 {[%clk 0:02:13]}  Rb8 {[%clk 0:01:49]} 21. f4 {[%clk 0:02:10]}  Bc8 {[%clk 0:01:29]} 22. Ra7 {[%clk 0:02:06]}  Kf8 {[%clk 0:01:26]} 23. Kf2 {[%clk 0:02:06]}  Ng8 {[%clk 0:01:15]} 24. Nf3 {[%clk 0:02:00]}  Ne7 {[%clk 0:01:15]} 25. b5 {[%clk 0:02:00]}  Bd7 {[%clk 0:01:12]} 26. e5 {[%clk 0:01:45]}  Nc8 {[%clk 0:01:12]} 27. Ra1 {[%clk 0:01:42]}  h6 {[%clk 0:01:01]} 28. Be2 {[%clk 0:01:23]}  Ke7 {[%clk 0:00:46]} 29. g4 {[%clk 0:01:14]}  f6 {[%clk 0:00:44]} 30. exf6+ {[%clk 0:01:07]}  Kxf6 {[%clk 0:00:43]} 31. Nd2 {[%clk 0:00:55]}  Nb6 {[%clk 0:00:43]} 32. Ra7 {[%clk 0:00:54]}  Be6 {[%clk 0:00:31]} 33. h4 {[%clk 0:00:49]}  Ke7 {[%clk 0:00:28]} 34. f5 {[%clk 0:00:44]}  Bf7 {[%clk 0:00:29]} 35. Ke3 {[%clk 0:00:42]}  Nd7 {[%clk 0:00:23]} 36. Kd4 {[%clk 0:00:40]}  Nc5 {[%clk 0:00:20]} 37. Bf3 {[%clk 0:00:36]}  Kd7 {[%clk 0:00:18]} 38. g5 {[%clk 0:00:34]}  hxg5 {[%clk 0:00:18]} 39. hxg5 {[%clk 0:00:35]}  g6 {[%clk 0:00:19]} 40. Ne4 {[%clk 0:00:29]}  gxf5 {[%clk 0:00:05]} 41. Nxc5+ {[%clk 0:00:29]}  dxc5+ {[%clk 0:00:05]} 42. Kxc5 {[%clk 0:00:30]}  b6+ {[%clk 0:00:05]} 43. Kd4 {[%clk 0:00:30]}  Kd6 {[%clk 0:00:05]} 44. Ra1 {[%clk 0:00:29]}  Rg8 {[%clk 0:00:06]} 45. Rg1 {[%clk 0:00:30]}  Bg6 {[%clk 0:00:04]} 46. Bd5 {[%clk 0:00:29]}  Rf8 {[%clk 0:00:04]} 47. Rh1 {[%clk 0:00:30]}  Bf7 {[%clk 0:00:03]} 48. Rh6+ {[%clk 0:00:26]}  Ke7 {[%clk 0:00:04]} 49. Rh7 {[%clk 0:00:27]}  Ke8 {[%clk 0:00:04]} 50. Bxf7+ {[%clk 0:00:25]}  Rxf7 {[%clk 0:00:05]} 51. Rxf7 {[%clk 0:00:26]}  Kxf7 {[%clk 0:00:05]} 52. Ke5 {[%clk 0:00:26]}  Kg6 {[%clk 0:00:06]} 53. Kf4 {[%clk 0:00:27]} 1-0

[Event "January 9 Early 2024"]
[Site "https://www.chess.com"]
[Date "2024.01.11"]
[Round "4"]
[White "Szalay, Karoly"]
[Black "Matveeva, Olga"]
[Result "0-1"]
[Board "247"]
[TimeControl "180+1"]
[WhiteFideId "2600544"]
[BlackFideId "24107018"]
[WhiteElo "2564"]
[BlackElo "2406"]
[WhiteTeam "CAN"]
[BlackTeam "RUS"]
[WhiteClock "0:00:17"]
[BlackClock "0:00:09"]

1. e4 {[%clk 0:03:00]}  c6 {[%clk 0:02:59]} 2. d4 {[%clk 0:02:58]}  d5 {[%clk 0:02:59]} 3. exd5 {[%clk 0:02:58]}  cxd5 {[%clk 0:03:00]} 4. c4 {[%clk 0:02:59]}  Nf6 {[%clk 0:03:00]} 5. Nc3 {[%clk 0:02:59]}  Nc6 {[%clk 0:03:00]} 6. h3 {[%clk 0:02:52]}  e6 {[%clk 0:02:59]} 7. Nf3 {[%clk 0:02:50]}  Be7 {[%clk 0:02:59]} 8. Bd3 {[%clk 0:02:49]}  dxc4 {[%clk 0:02:58]} 9. Bxc4 {[%clk 0:02:49]}  O-O {[%clk 0:02:59]} 10. O-O {[%clk 0:02:46]}  b6 {[%clk 0:02:55]} 11. Be3 {[%clk 0:02:18]}  Bb7 {[%clk 0:02:53]} 12. Qe2 {[%clk 0:02:18]}  Rc8 {[%clk 0:02:50]} 13. Rac1 {[%clk 0:02:12]}  Nb4 {[%clk 0:02:40]} 14. Ne5 {[%clk 0:02:10]}  Nbd5 {[%clk 0:02:38]} 15. Rfd1 {[%clk 0:02:10]}  Nxc3 {[%clk 0:02:30]} 16. Rxc3 {[%clk 0:01:43]}  Nd5 {[%clk 0:02:29]} 17. Rc2 {[%clk 0:01:40]}  Bf6 {[%clk 0:02:07]} 18. a3 {[%clk 0:01:32]}  Nxe3 {[%clk 0:01:58]} 19. Qxe3 {[%clk 0:01:31]}  Bd5 {[%clk 0:01:53]} 20. Rdc1 {[%clk 0:01:24]}  Bxc4 {[%clk 0:01:40]} 21. Rxc4 {[%clk 0:01:25]}  Rxc4 {[%clk 0:01:40]} 22. Rxc4 {[%clk 0:01:26]}  Qd5 {[%clk 0:01:38]} 23. Rc7 {[%clk 0:01:23]}  a5 {[%clk 0:01:26]} 24. Qc3 {[%clk 0:00:19]}  g6 {[%clk 0:01:20]} 25. Nf3 {[%clk 0:00:16]}  Rd8 {[%clk 0:01:14]} 26. Qc6 {[%clk 0:00:16]}  Bxd4 {[%clk 0:00:59]} 27. Qxd5 {[%clk 0:00:14]}  Rxd5 {[%clk 0:00:58]} 28. Nxd4 {[%clk 0:00:15]}  Rxd4 {[%clk 0:00:58]} 29. Rc6 {[%clk 0:00:15]}  b5 {[%clk 0:00:56]} 30. Rc5 {[%clk 0:00:15]}  Rd5 {[%clk 0:00:50]} 31. Rc7 {[%clk 0:00:15]}  Kg7 {[%clk 0:00:47]} 32. b4 {[%clk 0:00:14]}  axb4 {[%clk 0:00:45]} 33. axb4 {[%clk 0:00:15]}  Kf6 {[%clk 0:00:45]} 34. Rb7 {[%clk 0:00:15]}  g5 {[%clk 0:00:44]} 35. g4 {[%clk 0:00:15]}  Kg6 {[%clk 0:00:39]} 36. Kg2 {[%clk 0:00:15]}  h6 {[%clk 0:00:34]} 37. Kg3 {[%clk 0:00:15]}  f5 {[%clk 0:00:33]} 38. gxf5+ {[%clk 0:00:15]}  exf5 {[%clk 0:00:23]} 39. Rb6+ {[%clk 0:00:15]}  Kh5 {[%clk 0:00:19]} 40. f3 {[%clk 0:00:15]}  f4+ {[%clk 0:00:14]} 41. Kg2 {[%clk 0:00:15]}  Rd2+ {[%clk 0:00:11]} 42. Kf1 {[%clk 0:00:15]}  Kh4 {[%clk 0:00:11]} 43. Rxh6+ {[%clk 0:00:16]}  Kg3 {[%clk 0:00:10]} 44. Rh5 {[%clk 0:00:15]}  Kxf3 {[%clk 0:00:10]} 45. Ke1 {[%clk 0:00:16]}  Re2+ {[%clk 0:00:09]} 46. Kd1 {[%clk 0:00:16]}  Re5 {[%clk 0:00:09]} 47. h4 {[%clk 0:00:16]}  Kg4 {[%clk 0:00:08]} 48. Rxg5+ {[%clk 0:00:15]}  Rxg5 {[%clk 0:00:08]} 49. hxg5 {[%clk 0:00:16]}  Kxg5 {[%clk 0:00:08]} 50. Ke2 {[%clk 0:00:17]}  Kg4 {[%clk 0:00:09]} 0-1

[Event "January 9 Early 2024"]
[Site "https://www.chess.com"]
[Date "2024.01.11"]
[Round "4"]
[White "Pranav, V"]
[Black "Klekowski, Maciej"]
[Result "1-0"]
[Board "249"]
[TimeControl "180+1"]
[WhiteFideId "25060783"]
[BlackFideId "1132717"]
[WhiteElo "3038"]
[BlackElo "2862"]
[WhiteTeam "IND"]
[BlackTeam "POL"]
[WhiteClock "0:00:08"]
[BlackClock "0:00:03"]

1. e4 {[%clk 0:03:00]}  c5 {[%clk 0:03:00]} 2. Nf3 {[%clk 0:03:00]}  e6 {[%clk 0:03:00]} 3. b3 {[%clk 0:03:00]}  Nc6 {[%clk 0:02:59]} 4. Bb2 {[%clk 0:03:00]}  a6 {[%clk 0:03:00]} 5. d4 {[%clk 0:02:56]}  cxd4 {[%clk 0:02:57]} 6. Nxd4 {[%clk 0:02:57]}  Bb4+ {[%clk 0:02:29]} 7. Bc3 {[%clk 0:02:27]}  Qa5 {[%clk 0:02:17]} 8. Qd2 {[%clk 0:02:25]}  Qe5 {[%clk 0:02:03]} 9. Nxc6 {[%clk 0:01:53]}  Qxe4+ {[%clk 0:01:59]} 10. Be2 {[%clk 0:01:45]}  Qxg2 {[%clk 0:01:14]} 11. Nxb4 {[%clk 0:01:42]}  Qxh1+ {[%clk 0:01:14]} 12. Bf1 {[%clk 0:01:43]}  Nf6 {[%clk 0:01:06]} 13. Qf4 {[%clk 0:01:34]}  Qe4+ {[%clk 0:00:56]} 14. Qxe4 {[%clk 0:01:33]}  Nxe4 {[%clk 0:00:56]} 15. Bxg7 {[%clk 0:01:34]}  Rg8 {[%clk 0:00:57]} 16. Bd4 {[%clk 0:01:32]}  d6 {[%clk 0:00:50]} 17. Nc3 {[%clk 0:01:31]}  Nxc3 {[%clk 0:00:45]} 18. Bxc3 {[%clk 0:01:32]}  a5 {[%clk 0:00:40]} 19. Nd3 {[%clk 0:01:29]}  e5 {[%clk 0:00:39]} 20. O-O-O {[%clk 0:01:23]}  Bg4 {[%clk 0:00:32]} 21. Re1 {[%clk 0:01:22]}  b6 {[%clk 0:00:30]} 22. Nb2 {[%clk 0:01:19]}  Kd7 {[%clk 0:00:26]} 23. Nc4 {[%clk 0:01:18]}  Kc7 {[%clk 0:00:27]} 24. a4 {[%clk 0:01:11]}  Be6 {[%clk 0:00:24]} 25. Be2 {[%clk 0:01:00]}  f6 {[%clk 0:00:22]} 26. Bd2 {[%clk 0:00:58]}  d5 {[%clk 0:00:21]} 27. Na3 {[%clk 0:00:58]}  Rg2 {[%clk 0:00:21]} 28. f4 {[%clk 0:00:51]}  Rag8 {[%clk 0:00:21]} 29. fxe5 {[%clk 0:00:50]}  fxe5 {[%clk 0:00:22]} 30. Bd1 {[%clk 0:00:49]}  e4 {[%clk 0:00:20]} 31. Nb5+ {[%clk 0:00:47]}  Kc6 {[%clk 0:00:18]} 32. Bf4 {[%clk 0:00:46]}  Bg4 {[%clk 0:00:16]} 33. Nd4+ {[%clk 0:00:33]}  Kd7 {[%clk 0:00:16]} 34. Bg3 {[%clk 0:00:29]}  h5 {[%clk 0:00:14]} 35. Bxg4+ {[%clk 0:00:15]}  Rxg4 {[%clk 0:00:15]} 36. Nf5 {[%clk 0:00:10]}  h4 {[%clk 0:00:08]} 37. Nxh4 {[%clk 0:00:08]}  Rxh4 {[%clk 0:00:02]} 38. Bxh4 {[%clk 0:00:08]}  Rxh2 {[%clk 0:00:03]} 39. Bf6 {[%clk 0:00:08]}  Kc6 {[%clk 0:00:01]} 40. Bd4 {[%clk 0:00:08]}  Rh3 {[%clk 0:00:02]} 41. Rf1 {[%clk 0:00:08]}  b5 {[%clk 0:00:03]} 42. Rf6+ {[%clk 0:00:09]}  Kd7 {[%clk 0:00:04]} 43. axb5 {[%clk 0:00:09]}  e3 {[%clk 0:00:04]} 44. Rf1 {[%clk 0:00:08]}  e2 {[%clk 0:00:02]} 45. Re1 {[%clk 0:00:08]}  Rh4 {[%clk 0:00:03]} 46. c3 {[%clk 0:00:08]} 1-0

[Event "January 9 Early 2024"]
[Site "https://www.chess.com"]
[Date "2024.01.11"]
[Round "4"]
[White "Svane, Frederik"]
[Black "Zhao, Jun"]
[Result "1-0"]
[Board "250"]
[TimeControl "180+1"]
[WhiteFideId "12923044"]
[BlackFideId "8602522"]
[WhiteElo "3000"]
[BlackElo "2770"]
[WhiteTeam "GER"]
[BlackTeam "CHN"]
[WhiteClock "0:00:02"]
[BlackClock "0:00:01"]

1. e4 {[%clk 0:03:00]}  c5 {[%clk 0:02:53]} 2. Nf3 {[%clk 0:03:00]}  d6 {[%clk 0:02:54]} 3. Bb5+ {[%clk 0:03:01]}  Bd7 {[%clk 0:02:51]} 4. c4 {[%clk 0:03:01]}  Nf6 {[%clk 0:02:48]} 5. Nc3 {[%clk 0:03:01]}  g6 {[%clk 0:02:48]} 6. O-O {[%clk 0:03:00]}  Bg7 {[%clk 0:02:48]} 7. d4 {[%clk 0:03:01]}  cxd4 {[%clk 0:02:47]} 8. Nxd4 {[%clk 0:03:02]}  O-O {[%clk 0:02:47]} 9. h3 {[%clk 0:03:02]}  Nc6 {[%clk 0:02:43]} 10. Be3 {[%clk 0:03:02]}  Nxd4 {[%clk 0:02:42]} 11. Bxd4 {[%clk 0:03:02]}  Be6 {[%clk 0:02:42]} 12. b3 {[%clk 0:02:57]}  a6 {[%clk 0:02:41]} 13. Ba4 {[%clk 0:02:57]}  Rc8 {[%clk 0:02:41]} 14. Rc1 {[%clk 0:02:52]}  Qa5 {[%clk 0:02:35]} 15. Qd3 {[%clk 0:02:40]}  Bh6 {[%clk 0:02:10]} 16. Rcd1 {[%clk 0:02:15]}  Nh5 {[%clk 0:02:09]} 17. Ne2 {[%clk 0:01:18]}  Nf4 {[%clk 0:01:46]} 18. Nxf4 {[%clk 0:00:58]}  Bxf4 {[%clk 0:01:47]} 19. Bc3 {[%clk 0:00:59]}  Qc5 {[%clk 0:01:44]} 20. Bd4 {[%clk 0:00:57]}  Qa5 {[%clk 0:01:43]} 21. Bc3 {[%clk 0:00:42]}  Qc7 {[%clk 0:01:40]} 22. Bd2 {[%clk 0:00:38]}  Bxd2 {[%clk 0:01:37]} 23. Rxd2 {[%clk 0:00:39]}  Qc5 {[%clk 0:01:33]} 24. Kh1 {[%clk 0:00:29]}  Rb8 {[%clk 0:01:29]} 25. Rb1 {[%clk 0:00:25]}  Rfc8 {[%clk 0:01:25]} 26. f4 {[%clk 0:00:14]}  f6 {[%clk 0:01:18]} 27. Qf3 {[%clk 0:00:09]}  Qa5 {[%clk 0:01:08]} 28. Rd4 {[%clk 0:00:02]}  b5 {[%clk 0:01:08]} 29. f5 {[%clk 0:00:02]}  Bf7 {[%clk 0:01:07]} 30. fxg6 {[%clk 0:00:02]}  hxg6 {[%clk 0:01:06]} 31. e5 {[%clk 0:00:02]}  dxe5 {[%clk 0:01:01]} 32. Rd7 {[%clk 0:00:01]}  bxa4 {[%clk 0:00:59]} 33. Rxe7 {[%clk 0:00:01]}  axb3 {[%clk 0:00:56]} 34. Qxf6 {[%clk 0:00:01]}  Rf8 {[%clk 0:00:33]} 35. axb3 {[%clk 0:00:01]}  Rb6 {[%clk 0:00:28]} 36. Qg5 {[%clk 0:00:01]}  Kg7 {[%clk 0:00:04]} 37. Rf1 {[%clk 0:00:01]}  Qc5 {[%clk 0:00:03]} 38. Rxe5 {[%clk 0:00:01]}  Qd6 {[%clk 0:00:01]} 39. Re7 {[%clk 0:00:02]}  Rc6 {[%clk 0:00:01]} 40. Ra7 {[%clk 0:00:01]}  Rc7 {[%clk 0:00:00]} 41. Rxc7 {[%clk 0:00:01]}  Qxc7 {[%clk 0:00:01]} 42. Qf6+ {[%clk 0:00:02]} 1-0

[Event "January 9 Early 2024"]
[Site "https://www.chess.com"]
[Date "2024.01.11"]
[Round "4"]
[White "Saydaliev, Saidakbar"]
[Black "Pinero Rodriguez, Carlos Jose"]
[Result "0-1"]
[Board "251"]
[TimeControl "180+1"]
[WhiteFideId "14203693"]
[BlackFideId "3901726"]
[WhiteElo "2754"]
[BlackElo "2569"]
[WhiteTeam "UZB"]
[BlackTeam "VEN"]
[WhiteClock "0:00:08"]
[BlackClock "0:00:06"]

1. e3 {[%clk 0:02:47]}  c5 {[%clk 0:02:59]} 2. Nf3 {[%clk 0:02:47]}  Nf6 {[%clk 0:02:59]} 3. b3 {[%clk 0:02:39]}  b6 {[%clk 0:02:59]} 4. Bb2 {[%clk 0:02:39]}  Bb7 {[%clk 0:02:59]} 5. g3 {[%clk 0:02:39]}  e6 {[%clk 0:02:59]} 6. Bg2 {[%clk 0:02:40]}  Be7 {[%clk 0:02:59]} 7. O-O {[%clk 0:02:39]}  O-O {[%clk 0:02:59]} 8. c4 {[%clk 0:02:40]}  d6 {[%clk 0:02:58]} 9. Nc3 {[%clk 0:02:37]}  Nbd7 {[%clk 0:02:58]} 10. d4 {[%clk 0:02:33]}  a6 {[%clk 0:02:57]} 11. Qe2 {[%clk 0:02:08]}  Qc7 {[%clk 0:02:57]} 12. Rfd1 {[%clk 0:02:07]}  Rad8 {[%clk 0:02:56]} 13. Rac1 {[%clk 0:02:08]}  Qb8 {[%clk 0:02:55]} 14. d5 {[%clk 0:01:45]}  exd5 {[%clk 0:02:53]} 15. cxd5 {[%clk 0:01:43]}  b5 {[%clk 0:02:53]} 16. e4 {[%clk 0:01:43]}  Rfe8 {[%clk 0:02:52]} 17. Qd3 {[%clk 0:01:30]}  Bf8 {[%clk 0:02:47]} 18. Re1 {[%clk 0:01:31]}  b4 {[%clk 0:02:14]} 19. Nb1 {[%clk 0:01:25]}  a5 {[%clk 0:02:08]} 20. Nbd2 {[%clk 0:01:25]}  Nb6 {[%clk 0:02:06]} 21. Nh4 {[%clk 0:01:20]}  Nfd7 {[%clk 0:02:04]} 22. Nf5 {[%clk 0:01:12]}  g6 {[%clk 0:02:01]} 23. Qe3 {[%clk 0:01:08]}  f6 {[%clk 0:01:40]} 24. Nh6+ {[%clk 0:01:01]}  Kg7 {[%clk 0:01:27]} 25. Qg5 {[%clk 0:00:32]}  Ne5 {[%clk 0:01:26]} 26. Qh4 {[%clk 0:00:32]}  Be7 {[%clk 0:01:15]} 27. f4 {[%clk 0:00:28]}  Nd3 {[%clk 0:01:15]} 28. Ba1 {[%clk 0:00:26]}  Nxc1 {[%clk 0:01:08]} 29. Ng4 {[%clk 0:00:19]}  Rf8 {[%clk 0:01:04]} 30. Rxc1 {[%clk 0:00:17]}  Nd7 {[%clk 0:01:02]} 31. Nf3 {[%clk 0:00:16]}  h5 {[%clk 0:01:00]} 32. Ne3 {[%clk 0:00:15]}  Rh8 {[%clk 0:00:50]} 33. Ng5 {[%clk 0:00:15]}  Nf8 {[%clk 0:00:51]} 34. f5 {[%clk 0:00:14]}  Bc8 {[%clk 0:00:47]} 35. Rf1 {[%clk 0:00:13]}  Bd7 {[%clk 0:00:40]} 36. Bh3 {[%clk 0:00:13]}  Qc8 {[%clk 0:00:39]} 37. Ne6+ {[%clk 0:00:12]}  Bxe6 {[%clk 0:00:39]} 38. fxe6 {[%clk 0:00:13]}  Nh7 {[%clk 0:00:34]} 39. Nf5+ {[%clk 0:00:13]}  gxf5 {[%clk 0:00:33]} 40. Rxf5 {[%clk 0:00:14]}  c4 {[%clk 0:00:21]} 41. bxc4 {[%clk 0:00:08]}  Qc5+ {[%clk 0:00:19]} 42. Kh1 {[%clk 0:00:07]}  Qxc4 {[%clk 0:00:19]} 43. Qxh5 {[%clk 0:00:08]}  Qc1+ {[%clk 0:00:19]} 44. Rf1 {[%clk 0:00:09]}  Qe3 {[%clk 0:00:17]} 45. Qf7+ {[%clk 0:00:08]}  Kh6 {[%clk 0:00:17]} 46. Bg2 {[%clk 0:00:09]}  Rde8 {[%clk 0:00:07]} 47. g4 {[%clk 0:00:08]}  Ng5 {[%clk 0:00:06]} 48. Rf5 {[%clk 0:00:08]}  Nxf7 {[%clk 0:00:06]} 0-1

[Event "January 9 Early 2024"]
[Site "https://www.chess.com"]
[Date "2024.01.11"]
[Round "4"]
[White "Verbin, Valentina"]
[Black "Kraus, Tomas"]
[Result "0-1"]
[Board "253"]
[TimeControl "180+1"]
[WhiteFideId "13905910"]
[BlackFideId "331708"]
[WhiteElo "2139"]
[BlackElo "2360"]
[WhiteTeam "MDA"]
[BlackTeam "CZE"]
[WhiteClock "0:00:05"]
[BlackClock "0:00:16"]

1. Nf3 {[%clk 0:01:20]}  Nf6 {[%clk 0:02:59]} 2. d3 {[%clk 0:01:20]}  d6 {[%clk 0:02:57]} 3. e4 {[%clk 0:01:20]}  c5 {[%clk 0:02:57]} 4. Be2 {[%clk 0:01:20]}  Nc6 {[%clk 0:02:56]} 5. O-O {[%clk 0:01:21]}  g6 {[%clk 0:02:57]} 6. c3 {[%clk 0:01:22]}  Bg7 {[%clk 0:02:57]} 7. Be3 {[%clk 0:01:22]}  O-O {[%clk 0:02:58]} 8. h3 {[%clk 0:01:23]}  e6 {[%clk 0:02:55]} 9. Qd2 {[%clk 0:01:22]}  b6 {[%clk 0:02:54]} 10. a4 {[%clk 0:01:22]}  d5 {[%clk 0:02:54]} 11. e5 {[%clk 0:01:21]}  Nd7 {[%clk 0:02:54]} 12. d4 {[%clk 0:01:21]}  Na5 {[%clk 0:02:52]} 13. Bh6 {[%clk 0:01:20]}  Nb3 {[%clk 0:02:51]} 14. Qf4 {[%clk 0:01:18]}  Nxa1 {[%clk 0:02:48]} 15. Nbd2 {[%clk 0:01:10]}  Nc2 {[%clk 0:02:42]} 16. Bd3 {[%clk 0:01:08]}  Nxd4 {[%clk 0:02:28]} 17. cxd4 {[%clk 0:01:08]}  cxd4 {[%clk 0:02:26]} 18. Nxd4 {[%clk 0:00:55]}  Bxe5 {[%clk 0:01:58]} 19. Qe3 {[%clk 0:00:55]}  Bg7 {[%clk 0:01:32]} 20. Nc6 {[%clk 0:00:53]}  Qc7 {[%clk 0:01:29]} 21. Rc1 {[%clk 0:00:51]}  Kh8 {[%clk 0:01:15]} 22. Nb3 {[%clk 0:00:41]}  Qd6 {[%clk 0:00:57]} 23. Bf4 {[%clk 0:00:37]}  e5 {[%clk 0:00:53]} 24. Bh6 {[%clk 0:00:35]}  Bb7 {[%clk 0:00:50]} 25. Bb5 {[%clk 0:00:34]}  d4 {[%clk 0:00:44]} 26. Bxg7+ {[%clk 0:00:34]}  Kxg7 {[%clk 0:00:44]} 27. Qd2 {[%clk 0:00:26]}  Nc5 {[%clk 0:00:44]} 28. Nxc5 {[%clk 0:00:19]}  bxc5 {[%clk 0:00:45]} 29. Na5 {[%clk 0:00:15]}  Bd5 {[%clk 0:00:33]} 30. Bc4 {[%clk 0:00:10]}  f5 {[%clk 0:00:31]} 31. Bxd5 {[%clk 0:00:09]}  Qxd5 {[%clk 0:00:32]} 32. Qg5 {[%clk 0:00:08]}  Rf6 {[%clk 0:00:30]} 33. Nc4 {[%clk 0:00:06]}  e4 {[%clk 0:00:28]} 34. Nd2 {[%clk 0:00:04]}  h6 {[%clk 0:00:28]} 35. Qf4 {[%clk 0:00:04]}  Rd8 {[%clk 0:00:23]} 36. Qc7+ {[%clk 0:00:04]}  Rd7 {[%clk 0:00:23]} 37. Qxc5 {[%clk 0:00:04]}  Qxc5 {[%clk 0:00:23]} 38. Rxc5 {[%clk 0:00:05]}  e3 {[%clk 0:00:24]} 39. fxe3 {[%clk 0:00:05]}  dxe3 {[%clk 0:00:25]} 40. Nf3 {[%clk 0:00:04]}  Rd1+ {[%clk 0:00:23]} 41. Kh2 {[%clk 0:00:03]}  Re6 {[%clk 0:00:22]} 42. Rc7+ {[%clk 0:00:03]}  Kf6 {[%clk 0:00:22]} 43. Rxa7 {[%clk 0:00:03]}  e2 {[%clk 0:00:22]} 44. a5 {[%clk 0:00:02]}  Re3 {[%clk 0:00:21]} 45. Ra6+ {[%clk 0:00:02]}  Ke7 {[%clk 0:00:21]} 46. Ra7+ {[%clk 0:00:02]}  Kd6 {[%clk 0:00:21]} 47. Ra6+ {[%clk 0:00:03]}  Kc5 {[%clk 0:00:21]} 48. Rxg6 {[%clk 0:00:03]}  Rxf3 {[%clk 0:00:21]} 49. Re6 {[%clk 0:00:02]}  e1=Q {[%clk 0:00:17]} 50. Rxe1 {[%clk 0:00:02]}  Rxe1 {[%clk 0:00:18]} 51. gxf3 {[%clk 0:00:03]}  Re2+ {[%clk 0:00:19]} 52. Kg3 {[%clk 0:00:04]}  Rxb2 {[%clk 0:00:19]} 53. Kf4 {[%clk 0:00:05]}  Rf2 {[%clk 0:00:15]} 54. Kxf5 {[%clk 0:00:05]}  Rxf3+ {[%clk 0:00:15]} 55. Kg6 {[%clk 0:00:05]}  Rxh3 {[%clk 0:00:16]} 56. a6 {[%clk 0:00:05]}  Rh1 {[%clk 0:00:17]} 57. a7 {[%clk 0:00:05]}  Ra1 {[%clk 0:00:16]} 58. Kxh6 {[%clk 0:00:05]}  Rxa7 {[%clk 0:00:16]} 0-1